[Event "*** SCC Grand Prix: Titled Tuesday Blitz"]
[Site "Chess.com"]
[Date "2020.09.08"]
[Round "8"]
[White "AlexOstrovskiy"]
[Black "Rodchenkov_Vitalij"]
[Result "1-0"]
[WhiteElo "2740"]
[BlackElo "2575"]
[TimeControl "180+1"]
[EndTime "11:35:34 PDT"]
[Termination "AlexOstrovskiy won by resignation"]

1. d4 {[%clk 0:03:00.9]} 1... Nf6 {[%clk 0:02:59.2]} 2. Bf4 {[%clk 0:02:59.9]}
2... d5 {[%clk 0:02:58.7]} 3. e3 {[%clk 0:02:58.7]} 3... e6 {[%clk 0:02:59.3]}
4. Nd2 {[%clk 0:02:58.3]} 4... Bd6 {[%clk 0:02:58.9]} 5. Bg3 {[%clk 0:02:58.7]}
5... O-O {[%clk 0:02:58.1]} 6. Bd3 {[%clk 0:02:58.9]} 6... c5 {[%clk 0:02:58]}
7. c3 {[%clk 0:02:58.6]} 7... Qc7 {[%clk 0:02:57.4]} 8. Ngf3 {[%clk 0:02:58.6]}
8... Nbd7 {[%clk 0:02:56.6]} 9. Rc1 {[%clk 0:02:59]} 9... e5 {[%clk 0:02:55.9]}
10. dxe5 {[%clk 0:02:05.8]} 10... Nxe5 {[%clk 0:02:55]} 11. Nxe5 {[%clk
0:02:05.1]} 11... Bxe5 {[%clk 0:02:55.1]} 12. Nf3 {[%clk 0:02:05.7]} 12... Bxg3
{[%clk 0:02:50.8]} 13. hxg3 {[%clk 0:02:06.6]} 13... h6 {[%clk 0:02:46.4]} 14.
c4 {[%clk 0:02:02.4]} 14... dxc4 {[%clk 0:02:39.1]} 15. Bxc4 {[%clk 0:01:52]}
15... b5 {[%clk 0:02:27.3]} 16. Be2 {[%clk 0:01:45.1]} 16... Be6 {[%clk
0:02:22.7]} 17. O-O {[%clk 0:01:41.8]} 17... Qb6 {[%clk 0:02:19.2]} 18. Qc2
{[%clk 0:01:33.9]} 18... Rac8 {[%clk 0:02:17.5]} 19. Rfd1 {[%clk 0:01:34.5]}
19... a6 {[%clk 0:02:09.9]} 20. b3 {[%clk 0:01:32.4]} 20... Rfd8 {[%clk
0:02:02.9]} 21. Rxd8+ {[%clk 0:01:21.3]} 21... Qxd8 {[%clk 0:02:02.3]} 22. Rd1
{[%clk 0:01:21.9]} 22... Qa5 {[%clk 0:01:59.6]} 23. Ne5 {[%clk 0:01:17.9]} 23...
Nd5 {[%clk 0:01:54.3]} 24. Bg4 {[%clk 0:00:57.5]} 24... Bxg4 {[%clk 0:01:32.6]}
25. Nxg4 {[%clk 0:00:58.4]} 25... Nb4 {[%clk 0:01:09.8]} 26. Qe4 {[%clk
0:00:58.1]} 26... Qxa2 {[%clk 0:01:00.3]} 27. Nxh6+ {[%clk 0:00:48.2]} 27... Kf8
{[%clk 0:00:55.9]} 28. Qf5 {[%clk 0:00:42.7]} 28... Rc7 {[%clk 0:00:44.9]} 29.
Rd8+ {[%clk 0:00:41.2]} 29... Ke7 {[%clk 0:00:45.1]} 30. Nxf7 {[%clk 0:00:42.1]}
30... Qa1+ {[%clk 0:00:42.3]} 31. Kh2 {[%clk 0:00:41.6]} 31... Qf6 {[%clk
0:00:42.5]} 32. Qe4+ {[%clk 0:00:35.2]} 32... Qe6 {[%clk 0:00:33.6]} 33. Re8+
{[%clk 0:00:35.3]} 33... Kxe8 {[%clk 0:00:34.3]} 34. Qxe6+ {[%clk 0:00:34.8]}
34... Re7 {[%clk 0:00:35]} 35. Nd6+ {[%clk 0:00:34.9]} 1-0

[Event "*** SCC Grand Prix: Titled Tuesday Blitz"]
[Site "Chess.com"]
[Date "2020.09.08"]
[Round "8"]
[White "Carnivoras"]
[Black "pedromartinez91"]
[Result "0-1"]
[WhiteElo "2628"]
[BlackElo "2500"]
[TimeControl "180+1"]
[EndTime "11:35:34 PDT"]
[Termination "pedromartinez91 won by resignation"]

1. d4 {[%clk 0:03:00.3]} 1... c5 {[%clk 0:02:53.3]} 2. d5 {[%clk 0:02:57.9]}
2... Nf6 {[%clk 0:02:53.4]} 3. c4 {[%clk 0:02:57.7]} 3... d6 {[%clk 0:02:53.2]}
4. Nc3 {[%clk 0:02:58]} 4... g6 {[%clk 0:02:52.9]} 5. e4 {[%clk 0:02:58.5]} 5...
Bg7 {[%clk 0:02:53.8]} 6. Bd3 {[%clk 0:02:59]} 6... O-O {[%clk 0:02:54.7]} 7.
Nge2 {[%clk 0:02:59.3]} 7... Na6 {[%clk 0:02:54.8]} 8. O-O {[%clk 0:02:59.5]}
8... Nc7 {[%clk 0:02:54.8]} 9. a4 {[%clk 0:03:00]} 9... Na6 {[%clk 0:02:54.2]}
10. Be3 {[%clk 0:02:59.6]} 10... Nb4 {[%clk 0:02:54.7]} 11. Bb1 {[%clk
0:02:59.3]} 11... Nd7 {[%clk 0:02:55.6]} 12. Qd2 {[%clk 0:02:58]} 12... Ne5
{[%clk 0:02:55.4]} 13. b3 {[%clk 0:02:58.4]} 13... e6 {[%clk 0:02:54]} 14. h3
{[%clk 0:02:48.6]} 14... exd5 {[%clk 0:02:52.6]} 15. exd5 {[%clk 0:02:48.1]}
15... f5 {[%clk 0:02:51.9]} 16. Nf4 {[%clk 0:02:46.7]} 16... Re8 {[%clk
0:02:45.1]} 17. Rd1 {[%clk 0:01:57.2]} 17... Qf6 {[%clk 0:02:44.4]} 18. Ra3
{[%clk 0:01:45.3]} 18... Nf3+ {[%clk 0:02:41.8]} 19. gxf3 {[%clk 0:01:44.9]}
19... Qxc3 {[%clk 0:02:42.7]} 20. Qxc3 {[%clk 0:01:36.5]} 20... Bxc3 {[%clk
0:02:43.6]} 21. Nd3 {[%clk 0:01:36.8]} 21... f4 {[%clk 0:02:38.8]} 22. Bxf4
{[%clk 0:01:34]} 22... Nxd3 {[%clk 0:02:33.1]} 23. Bxd3 {[%clk 0:01:28.7]} 23...
Rd8 {[%clk 0:02:26.3]} 24. Kh2 {[%clk 0:01:24.6]} 24... b6 {[%clk 0:01:56]} 25.
Ra2 {[%clk 0:01:20.3]} 25... Bb7 {[%clk 0:01:54.2]} 26. Re2 {[%clk 0:01:17.4]}
26... Rd7 {[%clk 0:01:54.4]} 27. Re6 {[%clk 0:01:08.6]} 27... Rf8 {[%clk
0:01:54]} 28. Bxd6 {[%clk 0:01:08]} 28... Rxd6 {[%clk 0:01:54.1]} 29. Rxd6
{[%clk 0:01:04.7]} 29... Be5+ {[%clk 0:01:54.1]} 30. Kg2 {[%clk 0:01:05.3]}
30... Bxd6 {[%clk 0:01:55]} 31. Re1 {[%clk 0:01:05.6]} 31... Bc8 {[%clk
0:01:54]} 32. h4 {[%clk 0:00:59.7]} 32... Kf7 {[%clk 0:01:53.9]} 33. h5 {[%clk
0:00:58.4]} 33... gxh5 {[%clk 0:01:54.8]} 34. Rh1 {[%clk 0:00:56.7]} 34... Rg8+
{[%clk 0:01:48.7]} 35. Kf1 {[%clk 0:00:56.7]} 35... Rg5 {[%clk 0:01:49.1]} 36.
Bxh7 {[%clk 0:00:55.3]} 36... Bf5 {[%clk 0:01:45.3]} 37. Bxf5 {[%clk 0:00:49.4]}
37... Rxf5 {[%clk 0:01:46.2]} 38. Ke2 {[%clk 0:00:49.9]} 38... Kg6 {[%clk
0:01:43.8]} 39. Ke3 {[%clk 0:00:50.4]} 39... Rg5 {[%clk 0:01:33.5]} 40. Rh4
{[%clk 0:00:39.5]} 40... Re5+ {[%clk 0:01:32.2]} 41. Kd3 {[%clk 0:00:32.6]}
41... Rf5 {[%clk 0:01:32.4]} 42. Ke4 {[%clk 0:00:31.7]} 42... Re5+ {[%clk
0:01:29.4]} 43. Kd3 {[%clk 0:00:30.4]} 43... Re8 {[%clk 0:01:26.3]} 44. f4
{[%clk 0:00:26.1]} 44... Re1 {[%clk 0:01:20.6]} 45. Kd2 {[%clk 0:00:19.9]} 45...
Rb1 {[%clk 0:01:20.3]} 46. Kc2 {[%clk 0:00:19.7]} 46... Rf1 {[%clk 0:01:20.4]}
0-1

[Event "*** SCC Grand Prix: Titled Tuesday Blitz"]
[Site "Chess.com"]
[Date "2020.09.08"]
[Round "8"]
[White "saraswathii"]
[Black "Ba_clbaf_osed_ingo_3v21"]
[Result "0-1"]
[WhiteElo "2342"]
[BlackElo "2535"]
[TimeControl "180+1"]
[EndTime "11:35:36 PDT"]
[Termination "Ba_clbaf_osed_ingo_3v21 won by resignation"]

1. e4 {[%clk 0:03:00.9]} 1... c5 {[%clk 0:02:50.5]} 2. Nf3 {[%clk 0:03:00]} 2...
d6 {[%clk 0:02:50.9]} 3. d3 {[%clk 0:02:59.9]} 3... Nc6 {[%clk 0:02:49.5]} 4. g3
{[%clk 0:02:50.1]} 4... g6 {[%clk 0:02:47.8]} 5. Bg2 {[%clk 0:02:38.1]} 5... Bg7
{[%clk 0:02:47.4]} 6. O-O {[%clk 0:02:36.4]} 6... e6 {[%clk 0:02:47.2]} 7. c3
{[%clk 0:02:34.9]} 7... Nge7 {[%clk 0:02:44.4]} 8. Be3 {[%clk 0:02:32.2]} 8...
O-O {[%clk 0:02:41.6]} 9. d4 {[%clk 0:02:31.2]} 9... b6 {[%clk 0:02:40]} 10. Re1
{[%clk 0:02:26.7]} 10... Ba6 {[%clk 0:02:34.4]} 11. Na3 {[%clk 0:02:20.7]} 11...
Qc7 {[%clk 0:02:32.5]} 12. Rc1 {[%clk 0:02:17.4]} 12... Rac8 {[%clk 0:02:25.4]}
13. Qd2 {[%clk 0:02:14.7]} 13... Qb7 {[%clk 0:02:17.7]} 14. h4 {[%clk
0:02:10.9]} 14... h5 {[%clk 0:02:15.7]} 15. Ng5 {[%clk 0:02:06.5]} 15... cxd4
{[%clk 0:02:04]} 16. cxd4 {[%clk 0:02:05.1]} 16... d5 {[%clk 0:02:03.9]} 17.
exd5 {[%clk 0:02:03.4]} 17... Nxd5 {[%clk 0:02:01.7]} 18. Bxd5 {[%clk
0:01:58.6]} 18... exd5 {[%clk 0:02:01.2]} 19. Nc2 {[%clk 0:01:57.9]} 19... Rfe8
{[%clk 0:01:56.1]} 20. b3 {[%clk 0:01:52.3]} 20... Qd7 {[%clk 0:01:48.3]} 21.
Kg2 {[%clk 0:01:49.6]} 21... Qf5 {[%clk 0:01:41.2]} 22. Nb4 {[%clk 0:01:39.9]}
22... Nxb4 {[%clk 0:01:31.7]} 23. Qxb4 {[%clk 0:01:40.8]} 23... Bd3 {[%clk
0:01:29.3]} 24. Qd2 {[%clk 0:01:30.4]} 24... f6 {[%clk 0:01:20.4]} 25. Nh3
{[%clk 0:01:23.5]} 25... Be4+ {[%clk 0:01:16.5]} 26. Kh2 {[%clk 0:01:23.4]}
26... Qf3 {[%clk 0:01:16.3]} 27. Rg1 {[%clk 0:01:20.9]} 27... Bf8 {[%clk
0:01:03.6]} 28. Qd1 {[%clk 0:01:11]} 28... Ba3 {[%clk 0:01:01]} 29. Qxf3 {[%clk
0:01:08.8]} 29... Bxf3 {[%clk 0:01:01.9]} 30. Rce1 {[%clk 0:01:04.8]} 30... Rc2
{[%clk 0:00:57.9]} 31. Nf4 {[%clk 0:01:00.4]} 31... Kf7 {[%clk 0:00:55.9]} 32.
Nd3 {[%clk 0:00:57]} 32... Re7 {[%clk 0:00:36.1]} 33. Ra1 {[%clk 0:00:44.1]}
33... Rxe3 {[%clk 0:00:35.1]} 0-1

[Event "*** SCC Grand Prix: Titled Tuesday Blitz"]
[Site "Chess.com"]
[Date "2020.09.08"]
[Round "8"]
[White "kirillshevchenko"]
[Black "mishanick"]
[Result "1-0"]
[WhiteElo "2871"]
[BlackElo "2996"]
[TimeControl "180+1"]
[EndTime "11:35:42 PDT"]
[Termination "kirillshevchenko won by resignation"]

1. e4 {[%clk 0:03:00.9]} 1... c5 {[%clk 0:02:56.8]} 2. c3 {[%clk 0:03:01]} 2...
Nf6 {[%clk 0:02:56.3]} 3. e5 {[%clk 0:03:00.5]} 3... Nd5 {[%clk 0:02:56.8]} 4.
Bc4 {[%clk 0:03:00.6]} 4... Nb6 {[%clk 0:02:56.8]} 5. Bb3 {[%clk 0:03:00.5]}
5... d6 {[%clk 0:02:57.1]} 6. exd6 {[%clk 0:02:57.7]} 6... Qxd6 {[%clk 0:02:58]}
7. Na3 {[%clk 0:02:57.3]} 7... Nc6 {[%clk 0:02:45.3]} 8. d4 {[%clk 0:02:54.7]}
8... cxd4 {[%clk 0:02:44.4]} 9. Nb5 {[%clk 0:02:54.1]} 9... Qd8 {[%clk
0:02:32.6]} 10. Nf3 {[%clk 0:02:48]} 10... Bg4 {[%clk 0:02:27.4]} 11. h3 {[%clk
0:02:41.1]} 11... Bxf3 {[%clk 0:01:57.9]} 12. Qxf3 {[%clk 0:02:41]} 12... e6
{[%clk 0:01:58.5]} 13. O-O {[%clk 0:02:40.2]} 13... Be7 {[%clk 0:01:57.3]} 14.
Rd1 {[%clk 0:02:37.4]} 14... Bf6 {[%clk 0:01:52.5]} 15. Nxd4 {[%clk 0:02:15.8]}
15... Bxd4 {[%clk 0:01:33.6]} 16. cxd4 {[%clk 0:02:16.1]} 16... O-O {[%clk
0:01:33.2]} 17. Qe4 {[%clk 0:02:09.6]} 17... Nd5 {[%clk 0:01:30.8]} 18. Bc2
{[%clk 0:02:08.7]} 18... Nf6 {[%clk 0:01:29.1]} 19. Qh4 {[%clk 0:02:06.7]} 19...
Ne7 {[%clk 0:01:19.7]} 20. Bg5 {[%clk 0:01:43.1]} 20... Ng6 {[%clk 0:01:19.8]}
21. Bxg6 {[%clk 0:01:43.2]} 21... hxg6 {[%clk 0:01:18.7]} 22. Rd3 {[%clk
0:01:34.3]} 22... Qb6 {[%clk 0:00:58.5]} 23. Rb3 {[%clk 0:01:25.9]} 23... Qc6
{[%clk 0:00:36.3]} 24. Rc1 {[%clk 0:01:24.1]} 24... Qa6 {[%clk 0:00:31.6]} 25.
Bxf6 {[%clk 0:01:19.9]} 25... gxf6 {[%clk 0:00:31.5]} 26. Qxf6 {[%clk
0:01:20.5]} 26... Qxa2 {[%clk 0:00:32.1]} 27. Rxb7 {[%clk 0:01:20.2]} 27... Rab8
{[%clk 0:00:18.5]} 28. Re7 {[%clk 0:00:47.2]} 28... Rxb2 {[%clk 0:00:10.5]} 29.
Rxf7 {[%clk 0:00:43.5]} 1-0

[Event "*** SCC Grand Prix: Titled Tuesday Blitz"]
[Site "Chess.com"]
[Date "2020.09.08"]
[Round "8"]
[White "wannabe2700"]
[Black "Andreikka"]
[Result "0-1"]
[WhiteElo "2640"]
[BlackElo "2822"]
[TimeControl "180+1"]
[EndTime "11:35:47 PDT"]
[Termination "Andreikka won by resignation"]

1. e4 {[%clk 0:03:00.9]} 1... e5 {[%clk 0:02:56.9]} 2. Nf3 {[%clk 0:03:00.3]}
2... Nc6 {[%clk 0:02:51.4]} 3. Bb5 {[%clk 0:02:59.9]} 3... a6 {[%clk 0:02:50.3]}
4. Ba4 {[%clk 0:03:00.3]} 4... Nf6 {[%clk 0:02:50.1]} 5. O-O {[%clk 0:03:00.9]}
5... Be7 {[%clk 0:02:48.6]} 6. Re1 {[%clk 0:03:01]} 6... b5 {[%clk 0:02:47.9]}
7. Bb3 {[%clk 0:03:01.5]} 7... O-O {[%clk 0:02:46.9]} 8. c3 {[%clk 0:02:58.7]}
8... d6 {[%clk 0:02:38.2]} 9. h3 {[%clk 0:02:57.9]} 9... Bb7 {[%clk 0:02:37.8]}
10. d4 {[%clk 0:02:57.9]} 10... Re8 {[%clk 0:02:37.7]} 11. Nbd2 {[%clk
0:02:57.6]} 11... Bf8 {[%clk 0:02:37.3]} 12. Nf1 {[%clk 0:02:40.2]} 12... exd4
{[%clk 0:02:31.4]} 13. Ng5 {[%clk 0:02:36.2]} 13... Re7 {[%clk 0:02:20.5]} 14.
cxd4 {[%clk 0:02:34.7]} 14... h6 {[%clk 0:02:16.5]} 15. Nxf7 {[%clk 0:02:34]}
15... Rxf7 {[%clk 0:02:16]} 16. f4 {[%clk 0:02:16.6]} 16... d5 {[%clk
0:02:10.7]} 17. e5 {[%clk 0:02:11.8]} 17... Ne4 {[%clk 0:02:10.8]} 18. f5 {[%clk
0:01:58.6]} 18... Na5 {[%clk 0:02:08.8]} 19. g4 {[%clk 0:01:54.2]} 19... Nxb3
{[%clk 0:02:04.4]} 20. axb3 {[%clk 0:01:54]} 20... c5 {[%clk 0:02:04.2]} 21. Be3
{[%clk 0:01:52.8]} 21... Qh4 {[%clk 0:01:56.7]} 22. Kg2 {[%clk 0:01:52.3]} 22...
Re8 {[%clk 0:01:50.1]} 23. Rc1 {[%clk 0:01:45]} 23... cxd4 {[%clk 0:01:30.6]}
24. Bxd4 {[%clk 0:01:45.9]} 24... Rxe5 {[%clk 0:01:27.6]} 25. Qf3 {[%clk
0:00:57.9]} 25... Nd2 {[%clk 0:00:57.8]} 26. Nxd2 {[%clk 0:00:57.2]} 26... Rxe1
{[%clk 0:00:52.5]} 27. Bf2 {[%clk 0:00:56.5]} 27... d4 {[%clk 0:00:48.8]} 28.
Rxe1 {[%clk 0:00:43]} 28... Bxf3+ {[%clk 0:00:47.8]} 29. Nxf3 {[%clk 0:00:43.6]}
29... Qd8 {[%clk 0:00:45.4]} 30. Ne5 {[%clk 0:00:41.6]} 30... Re7 {[%clk
0:00:41.3]} 31. Bg3 {[%clk 0:00:35.7]} 31... Qd5+ {[%clk 0:00:41.2]} 32. Kf2
{[%clk 0:00:35.3]} 32... d3 {[%clk 0:00:42.1]} 33. b4 {[%clk 0:00:33.8]} 33...
d2 {[%clk 0:00:37.2]} 34. Rd1 {[%clk 0:00:34.1]} 34... Rxe5 {[%clk 0:00:36]} 35.
Rxd2 {[%clk 0:00:32.5]} 35... Qxd2+ {[%clk 0:00:31.4]} 0-1

[Event "*** SCC Grand Prix: Titled Tuesday Blitz"]
[Site "Chess.com"]
[Date "2020.09.08"]
[Round "8"]
[White "RobertoJBM"]
[Black "ShahMatKanal"]
[Result "0-1"]
[WhiteElo "2669"]
[BlackElo "2556"]
[TimeControl "180+1"]
[EndTime "11:35:48 PDT"]
[Termination "ShahMatKanal won by checkmate"]

1. d4 {[%clk 0:03:00.7]} 1... d5 {[%clk 0:02:59.1]} 2. c4 {[%clk 0:03:00.6]}
2... e6 {[%clk 0:02:58.4]} 3. Nc3 {[%clk 0:03:00.3]} 3... Nf6 {[%clk 0:02:58.3]}
4. cxd5 {[%clk 0:03:00.1]} 4... exd5 {[%clk 0:02:59]} 5. Bg5 {[%clk 0:03:00.1]}
5... c6 {[%clk 0:02:59.4]} 6. e3 {[%clk 0:02:58.1]} 6... Qb6 {[%clk 0:02:57.6]}
7. Bxf6 {[%clk 0:02:37]} 7... Qxb2 {[%clk 0:02:54.9]} 8. Rc1 {[%clk 0:02:37.4]}
8... Bb4 {[%clk 0:02:41.2]} 9. Qd2 {[%clk 0:02:22.8]} 9... Qxd2+ {[%clk
0:02:29.3]} 10. Kxd2 {[%clk 0:02:23.7]} 10... gxf6 {[%clk 0:02:29.7]} 11. Bd3
{[%clk 0:02:23.9]} 11... Rg8 {[%clk 0:02:13]} 12. g3 {[%clk 0:02:23.9]} 12... h5
{[%clk 0:02:12.9]} 13. Ne2 {[%clk 0:02:23.1]} 13... Be6 {[%clk 0:01:46.5]} 14.
Nf4 {[%clk 0:02:22.9]} 14... Rh8 {[%clk 0:01:44.6]} 15. h4 {[%clk 0:02:21.1]}
15... Nd7 {[%clk 0:01:40.4]} 16. Be2 {[%clk 0:02:20.6]} 16... Bg4 {[%clk
0:01:34.1]} 17. Bxg4 {[%clk 0:02:14.2]} 17... hxg4 {[%clk 0:01:33.7]} 18. Rb1
{[%clk 0:02:09.2]} 18... a5 {[%clk 0:01:29.5]} 19. a3 {[%clk 0:02:04.9]} 19...
Bxc3+ {[%clk 0:01:07.7]} 20. Kxc3 {[%clk 0:02:05.8]} 20... b5 {[%clk 0:01:07.4]}
21. Nd3 {[%clk 0:02:03.8]} 21... Nb6 {[%clk 0:01:04.8]} 22. Nc5 {[%clk
0:02:02.6]} 22... Nc4 {[%clk 0:01:03.4]} 23. Ra1 {[%clk 0:02:01.5]} 23... Ke7
{[%clk 0:00:58.5]} 24. Ra2 {[%clk 0:02:00.2]} 24... b4+ {[%clk 0:00:54.4]} 25.
axb4 {[%clk 0:01:59.6]} 25... axb4+ {[%clk 0:00:55.3]} 26. Kb3 {[%clk
0:01:59.5]} 26... Ra3+ {[%clk 0:00:50.2]} 27. Rxa3 {[%clk 0:01:58.1]} 27... bxa3
{[%clk 0:00:51.1]} 28. Ka2 {[%clk 0:01:45.3]} 28... Rb8 {[%clk 0:00:34.1]} 29.
Nd3 {[%clk 0:01:44.4]} 29... Nd2 {[%clk 0:00:27.2]} 30. h5 {[%clk 0:01:34.9]}
30... Ne4 {[%clk 0:00:19.6]} 31. Kxa3 {[%clk 0:01:30.9]} 31... Kd6 {[%clk
0:00:17.2]} 32. h6 {[%clk 0:01:29.8]} 32... c5 {[%clk 0:00:13.4]} 33. dxc5+
{[%clk 0:01:25.7]} 33... Nxc5 {[%clk 0:00:13.8]} 34. Nf4 {[%clk 0:01:26.3]}
34... Ne4 {[%clk 0:00:10]} 35. Rh2 {[%clk 0:01:24.7]} 35... Kc5 {[%clk
0:00:09.1]} 36. h7 {[%clk 0:01:24.7]} 36... Kc4 {[%clk 0:00:03.7]} 37. h8=Q
{[%clk 0:01:07.4]} 37... Rb3+ {[%clk 0:00:04]} 38. Ka4 {[%clk 0:01:03.4]} 38...
Nc5+ {[%clk 0:00:04.5]} 39. Ka5 {[%clk 0:01:03.1]} 39... Rb5# {[%clk 0:00:05.4]}
0-1

[Event "*** SCC Grand Prix: Titled Tuesday Blitz"]
[Site "Chess.com"]
[Date "2020.09.08"]
[Round "8"]
[White "Justinz"]
[Black "AldokhinIvan"]
[Result "0-1"]
[WhiteElo "2409"]
[BlackElo "2575"]
[TimeControl "180+1"]
[EndTime "11:35:49 PDT"]
[Termination "AldokhinIvan won by resignation"]

1. e4 {[%clk 0:03:00.9]} 1... c5 {[%clk 0:02:59.7]} 2. Nf3 {[%clk 0:03:01]} 2...
e6 {[%clk 0:03:00]} 3. d4 {[%clk 0:03:01.2]} 3... cxd4 {[%clk 0:03:00.6]} 4.
Nxd4 {[%clk 0:03:01.8]} 4... a6 {[%clk 0:03:01.1]} 5. c4 {[%clk 0:03:01.3]} 5...
Qc7 {[%clk 0:03:00]} 6. Nc3 {[%clk 0:03:01.1]} 6... Nf6 {[%clk 0:03:00.5]} 7. a3
{[%clk 0:03:00]} 7... d6 {[%clk 0:03:00.9]} 8. Be3 {[%clk 0:03:00.1]} 8... Be7
{[%clk 0:03:01.3]} 9. Be2 {[%clk 0:03:00.6]} 9... O-O {[%clk 0:03:01.4]} 10. O-O
{[%clk 0:03:01]} 10... Nbd7 {[%clk 0:03:01.5]} 11. Rc1 {[%clk 0:03:00]} 11... b6
{[%clk 0:03:01.5]} 12. f3 {[%clk 0:02:59.9]} 12... Bb7 {[%clk 0:03:01.6]} 13.
Qd2 {[%clk 0:03:00.3]} 13... Rac8 {[%clk 0:03:01.7]} 14. Rfd1 {[%clk 0:03:00.2]}
14... Qb8 {[%clk 0:03:01.9]} 15. Bf1 {[%clk 0:03:00.2]} 15... Bd8 {[%clk
0:03:01.2]} 16. Kh1 {[%clk 0:02:58.3]} 16... Bc7 {[%clk 0:03:00.5]} 17. Bg1
{[%clk 0:02:58.6]} 17... Kh8 {[%clk 0:02:57.4]} 18. b4 {[%clk 0:02:58.6]} 18...
Rg8 {[%clk 0:02:52.8]} 19. Nb3 {[%clk 0:02:17.2]} 19... g5 {[%clk 0:02:47.7]}
20. h3 {[%clk 0:02:17.3]} 20... Rg6 {[%clk 0:02:28.9]} 21. a4 {[%clk 0:02:00.9]}
21... h5 {[%clk 0:02:16]} 22. a5 {[%clk 0:01:55.3]} 22... bxa5 {[%clk 0:02:10]}
23. Nxa5 {[%clk 0:01:54.8]} 23... g4 {[%clk 0:02:09.4]} 24. c5 {[%clk
0:01:30.6]} 24... Bxa5 {[%clk 0:01:41.1]} 25. bxa5 {[%clk 0:01:30.4]} 25... dxc5
{[%clk 0:01:41.4]} 26. Bh2 {[%clk 0:01:22.9]} 26... Qa8 {[%clk 0:01:32.2]} 27.
Bd6 {[%clk 0:01:14.4]} 27... gxf3 {[%clk 0:01:25]} 28. gxf3 {[%clk 0:01:13.5]}
28... Rcg8 {[%clk 0:01:24.8]} 29. Bd3 {[%clk 0:00:57.3]} 29... e5 {[%clk
0:01:13.3]} 30. Rg1 {[%clk 0:00:54.5]} 30... Rxg1+ {[%clk 0:01:03.7]} 31. Rxg1
{[%clk 0:00:53.4]} 31... Rxg1+ {[%clk 0:01:04.6]} 32. Kxg1 {[%clk 0:00:53.4]}
32... Qg8+ {[%clk 0:01:05.5]} 33. Kh2 {[%clk 0:00:51.4]} 33... Qg6 {[%clk
0:01:02.1]} 34. Bc4 {[%clk 0:00:46.9]} 34... h4 {[%clk 0:00:58.8]} 35. Qf2
{[%clk 0:00:42.9]} 35... Nxe4 {[%clk 0:00:38.2]} 36. Qxh4+ {[%clk 0:00:40.1]}
36... Kg7 {[%clk 0:00:38.3]} 37. Nxe4 {[%clk 0:00:39.4]} 37... Bxe4 {[%clk
0:00:38.4]} 38. Bxe5+ {[%clk 0:00:33.9]} 38... Nxe5 {[%clk 0:00:37.6]} 39. Qxe4
{[%clk 0:00:33.6]} 39... Qxe4 {[%clk 0:00:37.1]} 40. fxe4 {[%clk 0:00:32.6]}
40... Nxc4 {[%clk 0:00:37.6]} 0-1

[Event "*** SCC Grand Prix: Titled Tuesday Blitz"]
[Site "Chess.com"]
[Date "2020.09.08"]
[Round "8"]
[White "nitpicker"]
[Black "RamyresCoelho"]
[Result "1-0"]
[WhiteElo "2217"]
[BlackElo "1795"]
[TimeControl "180+1"]
[EndTime "11:35:49 PDT"]
[Termination "nitpicker won by checkmate"]

1. d4 {[%clk 0:03:00.9]} 1... Nf6 {[%clk 0:02:52.6]} 2. c4 {[%clk 0:03:00.4]}
2... g6 {[%clk 0:02:51.7]} 3. Nc3 {[%clk 0:02:59.5]} 3... d5 {[%clk 0:02:51.8]}
4. Nf3 {[%clk 0:02:59.6]} 4... Bg7 {[%clk 0:02:51.7]} 5. Qb3 {[%clk 0:03:00.2]}
5... dxc4 {[%clk 0:02:51.3]} 6. Qxc4 {[%clk 0:03:00.8]} 6... O-O {[%clk
0:02:52.2]} 7. e4 {[%clk 0:03:00.8]} 7... c6 {[%clk 0:02:48.3]} 8. h3 {[%clk
0:02:57.5]} 8... b5 {[%clk 0:02:47.6]} 9. Qd3 {[%clk 0:02:52.7]} 9... b4 {[%clk
0:02:46.8]} 10. Na4 {[%clk 0:02:45.2]} 10... Ba6 {[%clk 0:02:46.2]} 11. Qe3
{[%clk 0:02:41]} 11... Bxf1 {[%clk 0:02:45.4]} 12. Kxf1 {[%clk 0:02:41.5]} 12...
Qa5 {[%clk 0:02:41.8]} 13. b3 {[%clk 0:02:27]} 13... Na6 {[%clk 0:02:37.6]} 14.
g4 {[%clk 0:02:25.1]} 14... Rfd8 {[%clk 0:02:31.8]} 15. Bb2 {[%clk 0:02:13.7]}
15... Nd7 {[%clk 0:02:26.4]} 16. Kg2 {[%clk 0:02:11.7]} 16... Nb6 {[%clk
0:02:19.7]} 17. Nxb6 {[%clk 0:02:08]} 17... Qxb6 {[%clk 0:02:20.6]} 18. Rac1
{[%clk 0:02:02.5]} 18... Rac8 {[%clk 0:02:20.3]} 19. Rc2 {[%clk 0:01:42.2]}
19... Nc7 {[%clk 0:02:17.1]} 20. Rhc1 {[%clk 0:01:40.2]} 20... Nb5 {[%clk
0:02:16.7]} 21. Rc4 {[%clk 0:01:36.3]} 21... a5 {[%clk 0:02:15.1]} 22. Ba1
{[%clk 0:01:25.2]} 22... e6 {[%clk 0:02:08.8]} 23. e5 {[%clk 0:00:59.1]} 23...
Na3 {[%clk 0:01:58.5]} 24. Rc5 {[%clk 0:00:57.4]} 24... Bf8 {[%clk 0:01:57.7]}
25. Ng5 {[%clk 0:00:50.9]} 25... Bxc5 {[%clk 0:01:55.1]} 26. dxc5 {[%clk
0:00:48.4]} 26... Qc7 {[%clk 0:01:53.2]} 27. Ne4 {[%clk 0:00:47.4]} 27... Qe7
{[%clk 0:01:32.4]} 28. Qh6 {[%clk 0:00:44.1]} 28... f5 {[%clk 0:01:12.3]} 29.
exf6 {[%clk 0:00:43]} 29... Qf8 {[%clk 0:00:54]} 30. f7+ {[%clk 0:00:36.8]}
30... Qxf7 {[%clk 0:00:44.9]} 31. Nf6+ {[%clk 0:00:35.3]} 31... Kh8 {[%clk
0:00:42]} 32. Nxh7+ {[%clk 0:00:28.5]} 32... Kg8 {[%clk 0:00:40]} 33. Nf6+
{[%clk 0:00:28.2]} 33... Qxf6 {[%clk 0:00:35.1]} 34. Bxf6 {[%clk 0:00:26.7]}
34... Rd7 {[%clk 0:00:36]} 35. Qh8+ {[%clk 0:00:23.9]} 35... Kf7 {[%clk
0:00:35.4]} 36. Qg7+ {[%clk 0:00:24.4]} 36... Ke8 {[%clk 0:00:35.6]} 37. Qg8#
{[%clk 0:00:25]} 1-0